fUSD/lending_fUSD_20260505
["ID","MTS","AMOUNT","RATE_DAILY","PERIOD"]
[421614615,1777963832000,-500.0,0.00036757,5]
[421614617,1777963832000,-169.07,0.00036779,2]
[421614616,1777963832000,-222.41966423,0.00036778,3]
[421614618,1777963832000,-500.0,0.00036852,7]
[421614620,1777963832000,-174.61919141,0.00036862,2]
[421614619,1777963832000,-500.0,0.00036852,7]
[421614623,1777963832000,-150.0,0.00036962,30]
[421614622,1777963832000,-886.88,0.00036952,10]
[421614611,1777963832000,-551.37201899,0.000364,5]
[421614654,1777963832000,-925.0,0.00037806,2]
[421614675,1777963832000,-151.0,0.00038,7]
[421614653,1777963832000,-3535.0,0.00037806,2]
[421614684,1777963832000,-15701.8862043,0.00038244,2]
[421614686,1777963832000,-1588.866989,0.0003827,7]
[421614691,1777963832000,-285.024589,0.0003827,7]
[421614689,1777963832000,-285.024589,0.0003827,7]
[421614692,1777963832000,-1588.866989,0.0003827,7]
[421614690,1777963832000,-1588.866989,0.0003827,7]
[421614687,1777963832000,-285.024589,0.0003827,7]
[421614688,1777963832000,-1588.866989,0.0003827,7]
[421614693,1777963832000,-285.024589,0.0003827,7]
[421614695,1777963832000,-150.0,0.00038331,7]
[421614694,1777963832000,-150.0,0.00038331,7]
[421614685,1777963832000,-207.73375662,0.00038244,120]
[421614696,1777963832000,-1009.99493695,0.00038424,5]
[421614700,1777963832000,-150.0,0.00038428,7]
[421614704,1777963832000,-162.1350868,0.00038488,2]
[421614705,1777963832000,-2680.2145973,0.00038488,2]
[421614703,1777963832000,-5079.6349693,0.0003848,2]
[421614706,1777963832000,-1618.6043024,0.00038547,2]
[421614701,1777963832000,-1744.12230018,0.00038437,2]
[421614702,1777963832000,-1057.0,0.00038479,5]
[421614699,1777963832000,-1508.53307175,0.00038424,5]
[421614708,1777963832000,-181.376504,0.00038622,21]
[421614707,1777963832000,-15701.8862043,0.00038588,2]
[421614651,1777963832000,-1005.84454996,0.00037792,5]
[421614698,1777963832000,-778.87762053,0.00038424,5]
[421614682,1777963832000,-152.0,0.00038121,4]
[421614697,1777963832000,-228.36618671,0.00038424,5]
[421614680,1777963832000,-838.08,0.00038034,30]
[421614656,1777963832000,-150.0,0.00037806,2]
[421614683,1777963832000,-150.0,0.00038135,7]
[421614655,1777963832000,-638.515,0.00037806,2]
[421614657,1777963832000,-1278.647,0.00037806,2]
[421614659,1777963832000,-256.929,0.00037806,2]
[421614669,1777963832000,-15701.88620439,0.000379,2]
[421614658,1777963832000,-1221.0,0.00037806,2]
[421614662,1777963832000,-150.0,0.00037806,2]
[421614661,1777963832000,-2475.776,0.00037806,2]
[421614670,1777963832000,-150.0,0.00037988,7]
[421614667,1777963832000,-1000.0,0.00037877,5]
[421614663,1777963832000,-6041.0,0.00037806,2]
[421614660,1777963832000,-150.0,0.00037806,2]
[421614676,1777963832000,-298.665676,0.00038,7]
[421614681,1777963832000,-1744.12230018,0.00038071,2]
[421614666,1777963832000,-1000.0,0.00037877,5]
[421614673,1777963832000,-7516.19335808,0.00038,60]
[421614677,1777963832000,-200.0,0.00038,120]
[421614679,1777963832000,-200.0,0.00038,120]
[421614671,1777963832000,-155.42950694,0.00037997,14]
[421614678,1777963832000,-200.0,0.00038,120]
[421614674,1777963832000,-151.691781,0.00038,7]
[421614672,1777963832000,-91634.91664692,0.00038,60]
[421614668,1777963832000,-1618.60430243,0.000379,2]
[421614664,1777963832000,-150.0,0.00037842,7]
[421614665,1777963832000,-1000.0,0.00037877,5]
[421614726,1777963833000,-1618.6043024,0.00039195,2]
[421614725,1777963833000,-1744.12230018,0.00039168,2]
[421614728,1777963833000,-500.0,0.00039251,2]
[421614722,1777963833000,-150.0,0.00039015,7]
[421614723,1777963833000,-150.0,0.00039015,7]
[421614734,1777963833000,-500.0,0.00039251,2]
[421614737,1777963833000,-150.0,0.00039308,7]
[421614732,1777963833000,-189.9926087,0.00039251,2]
[421614738,1777963833000,-185.87,0.00039409,2]
[421614742,1777963833000,-2000.0,0.0003941,113]
[421614740,1777963833000,-2000.0,0.0003941,113]
[421614729,1777963833000,-500.0,0.00039251,2]
[421614724,1777963833000,-150.0,0.00039015,30]
[421614727,1777963833000,-500.0,0.00039251,2]
[421614713,1777963833000,-151.0,0.00038633,28]
[421614719,1777963833000,-150.0,0.00039015,7]
[421614730,1777963833000,-500.0,0.00039251,2]
[421614720,1777963833000,-150.0,0.00039015,7]
[421614712,1777963833000,-151.0,0.00038633,28]
[421614717,1777963833000,-15701.8862043,0.00038932,2]
[421614715,1777963833000,-804.0,0.00038769,30]
[421614714,1777963833000,-150.0,0.00038722,7]
[421614711,1777963833000,-151.0,0.00038633,7]
[421614710,1777963833000,-151.0,0.00038633,7]
[421614716,1777963833000,-1744.12230018,0.00038802,2]
[421614709,1777963833000,-151.0,0.00038633,7]
[421614718,1777963833000,-162.0,0.00039,120]
[421614731,1777963833000,-500.0,0.00039251,2]
[421614721,1777963833000,-150.0,0.00039015,7]
[421614739,1777963833000,-2000.0,0.0003941,113]
[421614763,1777963833000,-1018.0,0.00039809,5]
[421614735,1777963833000,-379.10052604,0.00039251,2]
[421614768,1777963833000,-322.10277518,0.0003981,2]
[421614770,1777963833000,-8802.38400581,0.0003982,47]
[421614769,1777963833000,-812.0,0.0003982,5]
[421614766,1777963833000,-14851.91470691,0.0003981,120]
[421614767,1777963833000,-151.0,0.0003981,30]
[421614765,1777963833000,-58995.51986168,0.0003981,120]
[421614761,1777963833000,-500.0,0.00039776,30]
[421614760,1777963833000,-213.38507504,0.0003972,2]
[421614764,1777963833000,-18157.08352887,0.0003981,120]
[421614762,1777963833000,-3000.0,0.000398,120]
[421614759,1777963833000,-185.06959616,0.0003972,2]
[421614733,1777963833000,-500.0,0.00039251,2]
[421614758,1777963833000,-5000.0,0.0003972,2]
[421614757,1777963833000,-154.47454476,0.00039707,7]
[421614756,1777963833000,-603.31885694,0.00039705,7]
[421614752,1777963833000,-219.199999,0.000396,31]
[421614736,1777963833000,-175.84991684,0.00039251,2]
[421614741,1777963833000,-2000.0,0.0003941,113]
[421614743,1777963833000,-2000.0,0.0003941,113]
[421614755,1777963833000,-150.0,0.000397,7]
[421614745,1777963833000,-354.64962851,0.00039426,5]
[421614747,1777963833000,-219.199999,0.000396,31]
[421614746,1777963833000,-1744.12230018,0.00039533,2]
[421614748,1777963833000,-219.2,0.000396,31]
[421614750,1777963833000,-219.199999,0.000396,31]
[421614749,1777963833000,-219.199999,0.000396,31]
[421614754,1777963833000,-150.0,0.000397,7]
[421614751,1777963833000,-219.2,0.000396,31]
[421614753,1777963833000,-150.0,0.00039602,7]
[421614744,1777963833000,-2000.0,0.0003941,113]
[421614798,1777963838000,-15701.8862043,0.00039276,2]
[421614781,1777963838000,-193.45,0.00024658,2]
[421614783,1777963838000,-193.45,0.00029567,7]
[421614785,1777963838000,-162.51838138,0.00030432,2]
[421614797,1777963838000,-291.840007,0.00038,120]
[421614796,1777963838000,-200.0,0.00038,120]
[421614788,1777963838000,-236.18769724,0.000318,2]
[421614786,1777963838000,-236.18769724,0.000318,2]
[421614791,1777963838000,-193.46,0.00033443,7]
[421614790,1777963838000,-193.45,0.00032956,2]
[421614793,1777963838000,-200.0,0.00038,120]
[421614795,1777963838000,-200.0,0.00038,120]
[421614794,1777963838000,-200.0,0.00038,120]
[421614800,1777963838000,-200.0,0.0003982,30]
[421614792,1777963838000,-193.46,0.00034477,30]
[421614801,1777963838000,-348919.38404681,0.0003982,2]
[421614799,1777963838000,-23244.43603336,0.0003982,47]
[421614805,1777963840000,-1029.67326749,0.0003982,2]
[421614807,1777963840000,-6087.10756133,0.0003982,2]
[421614806,1777963840000,-6061.57519651,0.0003982,2]
[421614803,1777963840000,-15701.8862043,0.00039619,2]
[421614808,1777963840000,-710.75,0.0003982,2]
[421614809,1777963840000,-1646.11451364,0.0003982,2]
[421614810,1777963840000,-1147.126944,0.0003982,2]
[421614804,1777963840000,-16595.71379567,0.0003982,2]
[421614816,1777963842000,-6649.42044647,0.0003982,2]
[421614818,1777963843000,-416.0,0.0003982,2]
[421614822,1777963845000,-509.0,0.00027137,2]
[421614823,1777963845000,-509.0,0.00033011,8]
[421614824,1777963845000,-419.064,0.00038242,2]
[421614826,1777963845000,-2415.76582667,0.0003982,2]
[421614827,1777963845000,-8002.41930977,0.0003982,2]
[421614828,1777963845000,-47730.31153419,0.0003982,2]
[421614829,1777963845000,-6066.29004552,0.0003982,2]
[421614830,1777963845000,-43659.35263812,0.0003982,2]
[421614825,1777963845000,-509.0,0.00038884,14]
[421614831,1777963846000,-379.86433002,0.0003982,2]
[421614833,1777963846000,-479.21250253,0.0003982,2]
[421614835,1777963846000,-392.00860854,0.0003982,2]
[421614834,1777963846000,-5654.4226459,0.0003982,2]
[421614836,1777963846000,-381.13930652,0.0003982,2]
[421614832,1777963846000,-885.94882332,0.0003982,2]
[421614860,1777964738000,-0.89886114,0.00035729,30]
[421614858,1777964738000,-509.0,0.00027137,2]
[421614859,1777964738000,-154.79850598,0.00031266,30]
[421614877,1777964849000,-150.0,0.0003743,7]
[421614876,1777964849000,-367.721,0.00036898,2]
[421614874,1777964849000,-162.51838138,0.00036807,2]
[421614872,1777964849000,-509.0,0.00035947,11]
[421614873,1777964849000,-150.0,0.00036296,7]
[421614871,1777964849000,-150.0,0.00035729,7]
[421614870,1777964849000,-150.0,0.00035729,7]
[421614869,1777964849000,-150.0,0.00035729,7]
[421614866,1777964849000,-229.09574756,0.00035729,7]
[421614867,1777964849000,-150.0,0.00035729,7]
[421614865,1777964849000,-150.0,0.00035729,7]
[421614864,1777964849000,-149.10113886,0.00035729,30]
[421614863,1777964849000,-153.52200321,0.000318,2]
[421614862,1777964849000,-153.52200321,0.000318,2]
[421614861,1777964849000,-153.52200321,0.000318,2]
[421614875,1777964849000,-150.0,0.00036863,7]
[421614868,1777964849000,-151.98019546,0.00035729,7]
[421614878,1777964849000,-150.0,0.00037714,7]
[421614888,1777964849000,-9999.99,0.00038242,2]
[421614881,1777964849000,-553.0,0.00038241,3]
[421614879,1777964849000,-1672.61888549,0.00037806,2]
[421614897,1777964849000,-13414.9949,0.0003857,2]
[421614896,1777964849000,-150.0,0.00038564,7]
[421614895,1777964849000,-200.0,0.00038397,2]
[421614893,1777964849000,-759.0,0.00038374,30]
[421614892,1777964849000,-2000.0,0.0003836,2]
[421614891,1777964849000,-181.145,0.00038242,51]
[421614890,1777964849000,-980.038,0.00038242,51]
[421614894,1777964849000,-495.0,0.00038374,30]
[421614887,1777964849000,-299.99,0.00038242,30]
[421614889,1777964849000,-10359.5,0.00038242,2]
[421614882,1777964849000,-588.0,0.00038241,3]
[421614884,1777964849000,-6041.0,0.00038242,2]
[421614883,1777964849000,-2464.0,0.00038242,2]
[421614880,1777964849000,-150.0,0.00037997,7]
[421614886,1777964849000,-928.0,0.00038242,2]
[421614885,1777964849000,-1351.0,0.00038242,2]
[421614908,1777964850000,-150.0,0.00039132,7]
[421614915,1777964850000,-150.0,0.00039444,2]
[421614914,1777964850000,-150.0,0.00039444,2]
[421614913,1777964850000,-318.25,0.00039402,2]
[421614910,1777964850000,-1571.62754,0.0003931,112]
[421614911,1777964850000,-1571.62755,0.0003931,112]
[421614912,1777964850000,-1571.62754,0.0003931,112]
[421614909,1777964850000,-1571.62755,0.0003931,112]
[421614907,1777964850000,-475.04,0.00039128,2]
[421614899,1777964850000,-9999.99,0.00038669,2]
[421614905,1777964850000,-500.0,0.00038938,2]
[421614903,1777964850000,-4024.24,0.00038669,30]
[421614902,1777964850000,-9999.99,0.00038669,2]
[421614904,1777964850000,-5000.0,0.0003867,120]
[421614901,1777964850000,-14370.8,0.00038669,2]
[421614900,1777964850000,-150.99,0.00038669,2]
[421614898,1777964850000,-252.87235326,0.00038614,2]
[421614917,1777964850000,-150.0,0.00039444,2]
[421614906,1777964850000,-400.70922109,0.00039,15]
[421614916,1777964850000,-150.0,0.00039444,2]
[421614927,1777964850000,-241.28038308,0.00039695,2]
[421614921,1777964850000,-219.199999,0.000396,31]
[421614919,1777964850000,-219.199999,0.000396,31]
[421614937,1777964850000,-151.0,0.00039716,14]
[421614938,1777964850000,-150.0,0.00039718,2]
[421614936,1777964850000,-151.0,0.00039716,14]
[421614935,1777964850000,-151.0,0.00039716,14]
[421614934,1777964850000,-1571.62754,0.00039707,117]
[421614933,1777964850000,-1571.62755,0.00039707,117]
[421614932,1777964850000,-150.0,0.00039699,7]
[421614931,1777964850000,-150.0,0.00039699,7]
[421614928,1777964850000,-150.0,0.00039699,7]
[421614939,1777964850000,-407.57088546,0.00039718,15]
[421614929,1777964850000,-150.0,0.00039699,7]
[421614930,1777964850000,-150.00000001,0.00039699,7]
[421614925,1777964850000,-811.34848023,0.00039619,2]
[421614926,1777964850000,-151.0,0.00039695,2]
[421614924,1777964850000,-6280.75448172,0.00039619,2]
[421614923,1777964850000,-185.06959613,0.00039619,2]
[421614922,1777964850000,-2500.0,0.00039619,2]
[421614920,1777964850000,-219.2,0.000396,31]
[421614918,1777964850000,-224.74966561,0.00039444,2]
[421614941,1777964945000,-509.0,0.00027137,2]
[421614942,1777964945000,-153.52200321,0.000318,2]
[421614943,1777964945000,-153.52200321,0.000318,2]
[421614946,1777964945000,-1270.89988914,0.000339,120]
[421614944,1777964945000,-1536.91253802,0.00032,120]
[421614945,1777964945000,-1536.91253802,0.00033,120]
[421614949,1777964974000,-1015.45974693,0.00035,120]
[421614948,1777964974000,-266.01264888,0.000339,120]
[421614947,1777964974000,-153.52200321,0.000318,2]
[421614950,1777965031000,-748.9934267,0.00038156,2]
[421614951,1777965031000,-739.83242181,0.00038156,2]
[421614954,1777965031000,-1453.6254077,0.00038156,2]
[421614952,1777965031000,-255.75980045,0.00038156,2]
[421614955,1777965031000,-550.00639416,0.00038156,2]
[421614953,1777965031000,-719.41435104,0.00038156,2]
[421614957,1777965031000,-156.15270631,0.00038394,120]
[421614956,1777965031000,-4037.36819814,0.00038156,2]
[421614992,1777965032000,-500.0,0.00039718,15]
[421614982,1777965032000,-92.42911454,0.00039718,15]
[421614980,1777965032000,-300.0,0.00039718,10]
[421614976,1777965032000,-278.52723323,0.00039709,2]
[421614994,1777965032000,-187.40736392,0.00039718,15]
[421614996,1777965032000,-500.0,0.00039718,15]
[421614998,1777965032000,-500.0,0.00039718,15]
[421614999,1777965032000,-500.0,0.00039718,15]
[421615009,1777965032000,-500.0,0.00039718,15]
[421614990,1777965032000,-379.20361598,0.00039718,15]
[421615008,1777965032000,-500.0,0.00039718,15]
[421615002,1777965032000,-500.0,0.00039718,15]
[421615007,1777965032000,-500.0,0.00039718,15]
[421615003,1777965032000,-500.0,0.00039718,15]
[421615006,1777965032000,-500.0,0.00039718,15]
[421615001,1777965032000,-500.0,0.00039718,15]
[421615010,1777965032000,-500.0,0.00039718,15]
[421614974,1777965032000,-190.87817784,0.0003962,8]
[421614960,1777965032000,-98401.629,0.0003857,2]
[421614988,1777965032000,-239.86540362,0.00039718,15]
[421615004,1777965032000,-500.0,0.00039718,15]
[421614958,1777965032000,-2680.2145974,0.00038419,2]
[421614959,1777965032000,-349.0,0.00038569,4]
[421614961,1777965032000,-170.4290294,0.00038887,2]
[421614963,1777965032000,-673.0,0.0003926,30]
[421614964,1777965032000,-701.0,0.0003926,30]
[421614962,1777965032000,-156.15270631,0.00038942,120]
[421614972,1777965032000,-1011.627689,0.00039619,2]
[421614969,1777965032000,-2500.0,0.00039619,2]
[421614966,1777965032000,-156.15270631,0.0003949,120]
[421614967,1777965032000,-612.12733963,0.000396,107]
[421614965,1777965032000,-185.51023837,0.00039344,2]
[421614971,1777965032000,-5000.0,0.00039619,2]
[421614984,1777965032000,-500.0,0.00039718,15]
[421614986,1777965032000,-315.84115537,0.00039718,15]
[421614978,1777965032000,-150.0,0.00039717,2]
[421614968,1777965032000,-1496.72640959,0.000396,107]
[421615005,1777965032000,-500.0,0.00039718,15]
[421615000,1777965032000,-500.0,0.00039718,15]
[421615012,1777965032000,-500.0,0.00039718,15]
[421615034,1777965032000,-500.0,0.00039718,15]
[421615032,1777965032000,-500.0,0.00039718,15]
[421615036,1777965032000,-500.0,0.00039718,15]
[421615045,1777965032000,-300.0,0.00039719,10]
[421615041,1777965032000,-529.11263333,0.00039718,2]
[421615038,1777965032000,-1000.0,0.00039718,2]
[421615039,1777965032000,-1000.0,0.00039718,2]
[421615025,1777965032000,-500.0,0.00039718,15]
[421615043,1777965032000,-846.0,0.00039719,5]
[421615037,1777965032000,-527.72361607,0.00039718,15]
[421615042,1777965032000,-500.0,0.00039718,2]
[421615040,1777965032000,-1000.0,0.00039718,2]
[421615044,1777965032000,-677.0,0.00039719,5]
[421615047,1777965032000,-395665.63318181,0.00039719,2]
[421615048,1777965032000,-19738.52978301,0.00039719,2]
[421615046,1777965032000,-200.0,0.00039719,30]
[421615035,1777965032000,-594.22413254,0.00039718,15]
[421615028,1777965032000,-500.0,0.00039718,15]
[421615033,1777965032000,-500.0,0.00039718,15]
[421615021,1777965032000,-500.0,0.00039718,15]
[421615049,1777965032000,-608.65863426,0.00039719,2]
[421615023,1777965032000,-363.21547354,0.00039718,15]
[421615011,1777965032000,-500.0,0.00039718,15]
[421615013,1777965032000,-500.0,0.00039718,15]
[421615017,1777965032000,-500.0,0.00039718,15]
[421615015,1777965032000,-500.0,0.00039718,15]
[421615016,1777965032000,-500.0,0.00039718,15]
[421615027,1777965032000,-500.0,0.00039718,15]
[421615022,1777965032000,-500.0,0.00039718,15]
[421615018,1777965032000,-500.0,0.00039718,15]
[421615019,1777965032000,-500.0,0.00039718,15]
[421615020,1777965032000,-500.0,0.00039718,15]
[421615024,1777965032000,-500.0,0.00039718,15]
[421615026,1777965032000,-546.40235642,0.00039718,15]
[421615031,1777965032000,-185.72292286,0.00039718,15]
[421615029,1777965032000,-500.0,0.00039718,15]
[421615030,1777965032000,-500.0,0.00039718,15]
[421615014,1777965032000,-500.0,0.00039718,15]
[421615056,1777965037000,-1284.13000002,0.00039719,2]
[421615057,1777965037000,-3796.22534557,0.00039719,2]
[421615055,1777965037000,-336.0,0.00039717,30]
[421615058,1777965038000,-552.93113016,0.00039719,2]
[421615059,1777965038000,-4992.61308658,0.00039719,2]
[421615077,1777965039000,-2917.5460326,0.00039719,2]
[421615076,1777965039000,-9784.34547429,0.00039719,2]
[421615081,1777965040000,-152516.97604634,0.00039719,2]
[421615082,1777965040000,-1740.12592511,0.00039719,2]
[421615084,1777965040000,-644.38,0.00039719,2]
[421615085,1777965040000,-9948.13769428,0.00039719,2]
[421615080,1777965040000,-949.38353732,0.00039719,2]
[421615086,1777965040000,-834.55910177,0.00039719,2]
[421615087,1777965040000,-15721.00716633,0.00039719,2]
[421615088,1777965040000,-42293.39808523,0.00039719,2]
[421615089,1777965040000,-2510.73356464,0.00039719,2]
[421615083,1777965040000,-591.07158026,0.00039719,2]
[421615102,1777965043000,-2110.00819467,0.00039719,2]
[421615101,1777965043000,-73.85526301,0.00039719,2]
[421615103,1777965043000,-648.92043422,0.00039719,2]
[421615099,1777965043000,-8409.82413837,0.00039719,2]
[421615100,1777965043000,-10382.28291694,0.00039719,2]
[421615098,1777965043000,-928.0,0.00038157,2]
[421615112,1777965045000,-285.1836,0.00039719,2]
[421615111,1777965045000,-39122.37809322,0.00039719,2]
[421615110,1777965045000,-7789.63561146,0.00039719,2]
[421615114,1777965046000,-511.63701206,0.00039719,2]
[421615113,1777965046000,-7019.88673891,0.00039719,2]
[421615118,1777965046000,-492.98298303,0.00039719,2]
[421615116,1777965046000,-12171.84662956,0.00039719,2]
[421615117,1777965046000,-364.30194756,0.00039719,2]
[421615115,1777965046000,-101859.57640823,0.00039719,2]
[421615143,1777966030000,-1346.37620889,0.00035766,60]
[421615142,1777966030000,-165.548992,0.00035587,2]
[421615140,1777966030000,-298.0,0.00027137,2]
[421615141,1777966030000,-152.0,0.00033954,7]
[421615139,1777966030000,-569.0,0.00027137,2]
[421615144,1777966154000,-411.67306582,0.00032,120]
[421615145,1777966154000,-411.67306582,0.00033,120]
[421615146,1777966154000,-358.53386836,0.000339,120]
[421615148,1777966163000,-44.06189598,0.000339,120]
[421615147,1777966163000,-191.90250402,0.000318,2]
[421615149,1777966215000,1098249.71369859,0.00012,2]
[421615162,1777966231000,-150.0,0.00036025,30]
[421615161,1777966231000,-165.17,0.00036,2]
[421615160,1777966231000,-569.0,0.00035947,11]
[421615164,1777966231000,-150.0,0.00036025,7]
[421615159,1777966231000,-651.97379111,0.00035766,60]
[421615166,1777966231000,-150.0,0.00036025,7]
[421615168,1777966231000,-150.0,0.00036025,7]
[421615163,1777966231000,-150.0,0.00036025,7]
[421615167,1777966231000,-150.0,0.00036025,7]
[421615165,1777966231000,-150.0,0.00036025,7]
[421615181,1777966232000,-150.0,0.00036725,7]
[421615182,1777966232000,-150.0,0.00036825,7]
[421615185,1777966232000,-150.0,0.00036999,2]
[421615186,1777966232000,-6085.37031838,0.00037,7]
[421615175,1777966232000,-150.0,0.00036325,7]
[421615178,1777966232000,-150.0,0.00036596,7]
[421615173,1777966232000,-3322.0,0.00036164,2]
[421615176,1777966232000,-150.0,0.00036425,7]
[421615183,1777966232000,-653.58774245,0.00036852,2]
[421615171,1777966232000,-9999.99,0.00036055,2]
[421615169,1777966232000,-929.0,0.00036053,3]
[421615172,1777966232000,-150.0,0.00036125,7]
[421615174,1777966232000,-150.0,0.00036225,7]
[421615177,1777966232000,-150.0,0.00036525,7]
[421615179,1777966232000,-150.0,0.00036625,7]
[421615170,1777966232000,-7911.65107273,0.00036055,2]
[421615184,1777966232000,-150.0,0.00036925,7]
[421615200,1777966232000,-448.42004428,0.00037263,2]
[421615180,1777966232000,-150.0,0.00036692,7]
[421615199,1777966232000,-314.57995572,0.00037263,2]
[421615196,1777966232000,-20064.58009042,0.00037263,2]
[421615193,1777966232000,-513.40347208,0.0003722,21]
[421615194,1777966232000,-150.0,0.00037225,7]
[421615188,1777966232000,-150.0,0.00037025,7]
[421615195,1777966232000,-490.19080684,0.00037236,2]
[421615197,1777966232000,-25895.59032601,0.00037263,2]
[421615198,1777966232000,-1254.41808677,0.00037263,2]
[421615190,1777966232000,-150.0,0.00037125,7]
[421615189,1777966232000,-886.05089837,0.00037086,2]
[421615187,1777966232000,-150.0,0.00037025,7]
[421615192,1777966232000,-150.0,0.00037219,2]
[421615191,1777966232000,-150.0,0.00037168,7]
[421615233,1777966238000,-150.0,0.00038326,7]
[421615238,1777966238000,-150.0,0.00038626,7]
[421615240,1777966238000,-150.0,0.00038693,7]
[421615244,1777966238000,-236.427531,0.00038827,21]
[421615237,1777966238000,-150.0,0.00038526,7]
[421615242,1777966238000,-150.0,0.00038727,7]
[421615239,1777966238000,-150.0,0.00038693,7]
[421615241,1777966238000,-5000.0,0.00038695,120]
[421615249,1777966238000,-150.0,0.00039027,7]
[421615243,1777966238000,-200.0,0.00038762,2]
[421615247,1777966238000,-150.0,0.00038927,7]
[421615252,1777966238000,-350.0,0.00039199,6]
[421615248,1777966238000,-173.15251297,0.00039,5]
[421615246,1777966238000,-150.0,0.00038884,7]
[421615251,1777966238000,-150.0,0.00039127,7]
[421615261,1777966238000,-800.0,0.00039454,13]
[421615262,1777966238000,-800.0,0.00039454,13]
[421615250,1777966238000,-150.0,0.00039027,7]
[421615253,1777966238000,-150.0,0.00039227,7]
[421615254,1777966238000,-421.0,0.0003926,30]
[421615257,1777966238000,-500.0,0.0003936,7]
[421615256,1777966238000,-150.0,0.0003936,7]
[421615232,1777966238000,-200.0,0.00038318,2]
[421615245,1777966238000,-150.0,0.00038827,7]
[421615229,1777966238000,-150.0,0.00038226,7]
[421615212,1777966238000,-150.0,0.00037359,7]
[421615230,1777966238000,-200.0,0.00038252,2]
[421615259,1777966238000,-150.0,0.00039427,7]
[421615209,1777966238000,-10868.5114968,0.00037263,2]
[421615210,1777966238000,-150.0,0.00037326,7]
[421615211,1777966238000,-490.19080684,0.00037347,2]
[421615213,1777966238000,-150.0,0.00037359,7]
[421615221,1777966238000,-719.415,0.00037857,2]
[421615214,1777966238000,-150.0,0.00037426,7]
[421615217,1777966238000,-150.0,0.00037626,7]
[421615218,1777966238000,-150.0,0.00037726,7]
[421615219,1777966238000,-150.0,0.0003774,7]
[421615216,1777966238000,-150.0,0.00037592,2]
[421615220,1777966238000,-150.0,0.00037826,7]
[421615215,1777966238000,-150.0,0.00037526,7]
[421615223,1777966238000,-2000.0,0.00037937,2]
[421615222,1777966238000,-150.0,0.00037926,7]
[421615225,1777966238000,-150.0,0.00038026,7]
[421615236,1777966238000,-150.0,0.00038426,7]
[421615235,1777966238000,-150.0,0.00038385,2]
[421615224,1777966238000,-162.62,0.00038,90]
[421615228,1777966238000,-150.0,0.00038126,7]
[421615226,1777966238000,-150.0,0.00038026,7]
[421615227,1777966238000,-150.0,0.00038026,7]
[421615231,1777966238000,-150.0,0.00038312,7]
[421615234,1777966238000,-215.09,0.0003835,120]
[421615260,1777966238000,-800.0,0.00039454,13]
[421615307,1777966238000,-500.0,0.00039618,15]
[421615258,1777966238000,-249.22264444,0.00039421,2]
[421615300,1777966238000,-500.0,0.00039618,15]
[421615295,1777966238000,-500.0,0.00039618,15]
[421615299,1777966238000,-401.22216747,0.00039618,15]
[421615298,1777966238000,-500.0,0.00039618,15]
[421615297,1777966238000,-500.0,0.00039618,15]
[421615293,1777966238000,-500.0,0.00039618,15]
[421615292,1777966238000,-500.0,0.00039618,15]
[421615296,1777966238000,-500.0,0.00039618,15]
[421615294,1777966238000,-311.19120074,0.00039618,15]
[421615289,1777966238000,-219.2,0.000396,31]
[421615313,1777966238000,-16043.0933,0.00039619,2]
[421615314,1777966238000,-177465.13271596,0.00039619,2]
[421615302,1777966238000,-500.0,0.00039618,15]
[421615312,1777966238000,-18911.7999079,0.00039619,47]